fUST/lending_fUST_20240602
["ID","MTS","AMOUNT","RATE_DAILY","PERIOD"]
[328394748,1717332648600,-151.0,0.00019452,2]
[328394749,1717332648610,-269.275456,0.00019452,2]
[328394750,1717332648621,-2062.06,0.00019452,2]
[328394751,1717332648631,-84.83037668,0.00019452,2]
[328394757,1717333273511,154.98450155,9.999e-05,2]
[328394761,1717333552709,154.9690062,9.999e-05,2]
[328394797,1717333832734,-154.9690062,0.00018097,2]
[328394799,1717333832744,-2684.34073309,0.00018097,2]
[328394801,1717333832753,-208.667029,0.00018098,2]
[328394802,1717333832762,-250.0,0.00018121,2]
[328394804,1717333832772,-285.30517748,0.000189,2]
[328394805,1717333832781,-19286.03955705,0.00019077,2]
[328394807,1717333832790,-198.94639142,0.00019078,2]
[328394808,1717333832800,-184.69641793,0.00019078,2]
[328394809,1717333832809,-305.32845211,0.00019176,2]
[328394810,1717333832818,-685.62790104,0.00019176,2]
[328394811,1717333832828,-239.21076541,0.00019176,2]
[328394812,1717333832837,-156.68407224,0.00019176,2]
[328394813,1717333832847,-154.98135029,0.00019176,2]
[328394814,1717333832856,-258.68943157,0.00019176,2]
[328394815,1717333832865,-279.93786873,0.00019177,2]
[328394816,1717333832874,-500.0,0.00019178,2]
[328394817,1717333832883,-500.0,0.00019178,2]
[328394818,1717333832892,-500.0,0.00019178,2]
[328394819,1717333832901,-500.0,0.00019178,2]
[328394820,1717333832911,-500.0,0.00019178,2]
[328394821,1717333832920,-503.92230487,0.00019178,2]
[328394822,1717333832930,-500.0,0.00019178,2]
[328394823,1717333832940,-396.8788835,0.00019178,2]
[328394824,1717333832949,-500.0,0.00019178,2]
[328394825,1717333832958,-261.50920553,0.00019178,2]
[328394826,1717333832967,-160.28977731,0.00019178,2]
[328394827,1717333832977,-166.1354967,0.00019178,2]
[328394828,1717333832986,-200.05620454,0.00019178,2]
[328394829,1717333832996,-503.66,0.00019178,2]
[328394830,1717333833006,-608.6,0.00019178,2]
[328394831,1717333833016,-500.0,0.00019178,2]
[328394832,1717333833026,-502.94015054,0.00019178,2]
[328394833,1717333833036,-504.84618145,0.00019178,2]
[328394834,1717333833045,-500.0,0.00019178,2]
[328394835,1717333833054,-500.0,0.00019178,2]
[328394836,1717333833064,-500.0,0.00019178,2]
[328394837,1717333833074,-191.15837674,0.00019178,2]
[328394838,1717333833087,-308.84162326,0.00019178,2]
[328394839,1717333833096,-500.0,0.00019178,2]
[328394840,1717333833108,-500.0,0.00019178,2]
[328394841,1717333833118,-500.0,0.00019178,2]
[328394842,1717333833128,-500.0,0.00019178,2]
[328394843,1717333833138,-494.9190918,0.00019178,2]
[328394858,1717333838714,-5.0809082,0.00019178,2]
[328394859,1717333838724,-500.0,0.00019178,2]
[328394860,1717333838734,-493.30080567,0.00019178,2]
[328394861,1717333838781,-653.52919433,0.00019178,2]
[328394862,1717333838791,-426.36255744,0.00019178,2]
[328394884,1717333842024,-73.63744256,0.00019178,2]
[328394885,1717333842034,-500.0,0.00019178,2]
[328394886,1717333842043,-500.0,0.00019178,2]
[328394887,1717333842052,-494.89262078,0.00019178,2]
[328394888,1717333842061,-500.0,0.00019178,2]
[328394889,1717333842070,-500.0,0.00019178,2]
[328394890,1717333842079,-435.70207766,0.00019178,2]
[328394903,1717333909051,1083.6742062,9.999e-05,2]
[328394904,1717333911327,1283.62119993,9.999e-05,2]
[328394905,1717333911352,57.42434137,9.999e-05,2]
[328394906,1717333918999,1981.28535141,9.999e-05,2]
[328394908,1717333942670,1341.53230163,9.999e-05,2]
[328394909,1717333950725,2066.56429307,9.999e-05,2]
[328394910,1717333958816,154.9690062,9.999e-05,2]
[328394915,1717334459485,154.9690062,9.999e-05,2]
[328394916,1717334590202,2091.43127022,9.999e-05,2]
[328394928,1717335016094,3091.29388591,0.00030019,30]
[328394967,1717335032059,-190.29205941,0.000156,2]
[328394969,1717335032070,-154.9690062,0.00018869,2]
[328394971,1717335032080,-897.53531061,0.0001887,2]
[328394973,1717335032090,-184.69641792,0.00018871,2]
[328394975,1717335032102,-190.20345166,0.000189,2]
[328394977,1717335032112,-11083.31615394,0.0001895,2]
[328394979,1717335032124,-19286.03955705,0.00018951,2]
[328394982,1717335032134,-620.04689863,0.00018971,2]
[328394984,1717335032145,-358.10350458,0.00019057,2]
[328394986,1717335032155,-358.10350456,0.00019062,2]
[328394988,1717335032166,-358.10350456,0.00019068,2]
[328394990,1717335032175,-358.10350456,0.00019073,2]
[328394992,1717335032188,-358.10350456,0.00019078,2]
[328394994,1717335032200,-601.31563355,0.00019078,2]
[328394996,1717335032210,-4233.16048784,0.00019085,2]
[328394998,1717335032220,-150.0,0.00019152,2]
[328395000,1717335032231,-16347.36019164,0.00019156,2]
[328395002,1717335032241,-2109.54099947,0.00019157,2]
[328395004,1717335032251,-192.33,0.00019168,3]
[328395007,1717335032263,-177.86809875,0.00019176,2]
[328395009,1717335032274,-271.82588098,0.00019176,2]
[328395011,1717335032284,-1870.54761155,0.00019176,2]
[328395013,1717335032294,-836.37406668,0.00019176,2]
[328395015,1717335032304,-158.30450228,0.00019176,2]
[328395017,1717335032314,-164.30390821,0.00019176,2]
[328395019,1717335032324,-1043.8924433,0.00019176,2]
[328395021,1717335032336,-281.69123013,0.00019176,2]
[328395023,1717335032346,-194.63259414,0.00019176,2]
[328395025,1717335032358,-156.55408668,0.00019176,2]
[328395027,1717335032368,-1899.42263675,0.00019176,2]
[328395029,1717335032378,-953.59812877,0.00019176,2]
[328395031,1717335032389,-734.89683899,0.00019176,2]
[328395033,1717335032400,-1164.11699777,0.00019176,2]
[328395034,1717335032410,-155.87952871,0.00019176,2]
[328395035,1717335032421,-729.03535135,0.00019177,2]
[328395036,1717335032431,-3208.74035464,0.00019177,2]
[328395037,1717335032441,-4470.59568731,0.00019178,7]
[328395038,1717335032452,-500.0,0.00019178,2]
[328395039,1717335032462,-408.89441465,0.00019178,2]
[328395040,1717335032472,-543.17554149,0.00019178,2]
[328395041,1717335032483,-500.0,0.00019178,2]
[328395042,1717335032493,-235.0,0.00019178,2]
[328395043,1717335032503,-500.0,0.00019178,2]
[328395044,1717335032514,-615.9,0.00019178,2]
[328395045,1717335032524,-500.0,0.00019178,2]
[328395046,1717335032535,-500.0,0.00019178,2]
[328395047,1717335032545,-500.0,0.00019178,2]
[328395048,1717335032556,-940.43,0.00019178,2]
[328395049,1717335032566,-581.78,0.00019178,2]
[328395050,1717335032576,-121.76386242,0.00019178,2]
[328395051,1717335032773,-378.23613758,0.00019178,2]
[328395052,1717335032784,-743.96,0.00019178,2]
[328395053,1717335032795,-500.0,0.00019178,2]
[328395054,1717335032806,-500.0,0.00019178,2]
[328395055,1717335032816,-169.11403742,0.00019178,2]
[328395056,1717335032827,-151.849988,0.00019178,2]
[328395057,1717335032838,-500.0,0.00019178,2]
[328395058,1717335032848,-500.0,0.00019178,2]
[328395059,1717335032858,-151.0,0.00019178,2]
[328395060,1717335032868,-500.0,0.00019178,2]
[328395061,1717335032879,-500.0,0.00019178,2]
[328395062,1717335032890,-500.0,0.00019178,2]
[328395063,1717335032900,-500.0,0.00019178,2]
[328395064,1717335032911,-500.0,0.00019178,2]
[328395065,1717335032922,-500.0,0.00019178,2]
[328395066,1717335032933,-412.89552402,0.00019178,2]
[328395067,1717335032944,-531.85,0.00019178,2]
[328395068,1717335032955,-546.35,0.00019178,2]
[328395069,1717335032966,-500.0,0.00019178,2]
[328395070,1717335032976,-500.0,0.00019178,2]
[328395071,1717335032987,-856.41,0.00019178,2]
[328395072,1717335032998,-500.0,0.00019178,2]
[328395073,1717335033009,-500.0,0.00019178,2]
[328395074,1717335033019,-500.0,0.00019178,2]
[328395075,1717335033030,-245.67944209,0.00019178,2]
[328395134,1717335037945,-235.29734044,0.00019079,2]
[328395135,1717335037955,-286.23153869,0.00019178,7]
[328395137,1717335037964,-254.32055791,0.00019178,2]
[328395139,1717335037974,-500.0,0.00019178,2]
[328395140,1717335037983,-500.0,0.00019178,2]
[328395141,1717335037992,-309.14036531,0.00019178,2]
[328395142,1717335038004,-190.85963469,0.00019178,2]
[328395143,1717335038013,-500.0,0.00019178,2]
[328395144,1717335038022,-676.11703865,0.00019178,2]
[328395172,1717335041748,-370.33268568,0.00019178,2]
[328395173,1717335041761,-378.25027567,0.00019178,2]
[328395174,1717335041770,-500.0,0.00019178,2]
[328395175,1717335041780,-500.0,0.00019178,2]
[328395176,1717335041789,-500.0,0.00019178,2]
[328395177,1717335041800,-500.0,0.00019178,2]
[328395178,1717335041809,-500.0,0.00019178,2]
[328395179,1717335041820,-500.0,0.00019178,2]
[328395180,1717335041830,-500.0,0.00019178,2]
[328395181,1717335041839,-500.0,0.00019178,2]
[328395182,1717335041849,-500.0,0.00019178,2]
[328395183,1717335041861,-676.57,0.00019178,2]
[328395184,1717335041870,-500.0,0.00019178,2]
[328395185,1717335041881,-892.74,0.00019178,2]
[328395186,1717335041891,-500.0,0.00019178,2]
[328395187,1717335041900,-500.0,0.00019178,2]
[328395188,1717335041911,-500.0,0.00019178,2]
[328395189,1717335041924,-500.0,0.00019178,2]
[328395190,1717335041933,-500.0,0.00019178,2]
[328395191,1717335041943,-500.0,0.00019178,2]
[328395192,1717335041952,-500.0,0.00019178,2]
[328395193,1717335041963,-500.0,0.00019178,2]
[328395194,1717335041973,-500.0,0.00019178,2]
[328395195,1717335041983,-1244.67,0.00019178,2]
[328395196,1717335041994,-500.0,0.00019178,2]
[328395197,1717335042004,-649.77762634,0.00019178,2]
[328395198,1717335042018,-576.53237366,0.00019178,2]
[328395199,1717335042027,-500.0,0.00019178,2]
[328395200,1717335042036,-500.0,0.00019178,2]
[328395201,1717335042046,-605.72,0.00019178,2]
[328395202,1717335042057,-500.0,0.00019178,2]
[328395203,1717335042066,-500.0,0.00019178,2]
[328395204,1717335042075,-527.35014866,0.00019178,2]
[328395205,1717335042085,-500.0,0.00019178,2]
[328395206,1717335042095,-1934.55,0.00019178,2]
[328395207,1717335042104,-500.0,0.00019178,2]
[328395208,1717335042113,-500.0,0.00019178,2]
[328395209,1717335042122,-151.0,0.00019178,2]
[328395210,1717335042131,-151.0,0.00019178,2]
[328395211,1717335042140,-737.85,0.00019178,2]
[328395212,1717335042149,-500.0,0.00019178,2]
[328395213,1717335042159,-500.0,0.00019178,2]
[328395214,1717335042168,-500.0,0.00019178,2]
[328395215,1717335042178,-500.0,0.00019178,2]
[328395216,1717335042189,-500.0,0.00019178,2]
[328395217,1717335042198,-500.0,0.00019178,2]
[328395218,1717335042207,-500.0,0.00019178,2]
[328395219,1717335042217,-500.0,0.00019178,2]
[328395220,1717335042228,-500.0,0.00019178,2]
[328395221,1717335042237,-807.23,0.00019178,2]
[328395222,1717335042246,-625.91,0.00019178,2]
[328395223,1717335042255,-1206.04,0.00019178,2]
[328395224,1717335042267,-525.861654,0.00019178,2]
[328395225,1717335042276,-525.861654,0.00019178,2]
[328395226,1717335042285,-500.0,0.00019178,2]
[328395227,1717335042294,-500.0,0.00019178,2]
[328395228,1717335042303,-500.0,0.00019178,2]
[328395229,1717335042312,-500.0,0.00019178,2]
[328395230,1717335042321,-500.0,0.00019178,2]
[328395231,1717335042330,-945.29,0.00019178,2]
[328395232,1717335042339,-151.0,0.00019178,2]
[328395233,1717335042348,-500.0,0.00019178,2]
[328395234,1717335042358,-500.0,0.00019178,2]
[328395235,1717335042367,-500.0,0.00019178,2]
[328395236,1717335042377,-500.0,0.00019178,2]
[328395237,1717335042386,-500.0,0.00019178,2]
[328395238,1717335042395,-500.0,0.00019178,2]
[328395239,1717335042404,-500.0,0.00019178,2]
[328395240,1717335042414,-500.0,0.00019178,2]
[328395241,1717335042423,-500.0,0.00019178,2]
[328395242,1717335042432,-500.0,0.00019178,2]
[328395243,1717335042441,-500.0,0.00019178,2]
[328395244,1717335042450,-500.0,0.00019178,2]
[328395245,1717335042459,-500.0,0.00019178,2]
[328395246,1717335042468,-575.61,0.00019178,2]
[328395247,1717335042478,-228.969398,0.00019178,2]
[328395248,1717335042487,-500.0,0.00019178,2]
[328395249,1717335042496,-745.81,0.00019178,2]
[328395250,1717335042505,-1911.05,0.00019178,2]
[328395251,1717335042515,-151.0,0.00019178,2]
[328395252,1717335042524,-151.0,0.00019178,2]
[328395254,1717335042533,-583.24,0.00019178,2]
[328395255,1717335042544,-500.0,0.00019178,2]
[328395256,1717335042554,-537.89,0.00019178,2]
[328395257,1717335042564,-561.71,0.00019178,2]
[328395258,1717335042573,-500.0,0.00019178,2]
[328395259,1717335042583,-954.3,0.00019178,2]
[328395260,1717335042592,-500.0,0.00019178,2]
[328395261,1717335042601,-810.67,0.00019178,2]
[328395262,1717335042610,-500.0,0.00019178,2]
[328395263,1717335042620,-653.14,0.00019178,2]
[328395264,1717335042629,-500.0,0.00019178,2]
[328395265,1717335042639,-500.0,0.00019178,2]
[328395266,1717335042649,-569.36053771,0.00019178,2]
[328395267,1717335042659,-882.04,0.00019178,2]
[328395268,1717335042670,-500.0,0.00019178,2]
[328395269,1717335042680,-500.0,0.00019178,2]
[328395270,1717335042690,-500.0,0.00019178,2]
[328395271,1717335042700,-842.86,0.00019178,2]
[328395272,1717335042711,-500.0,0.00019178,2]
[328395273,1717335042721,-6598.51024995,0.00019178,2]
[328395274,1717335043144,-5354.57975005,0.00019178,2]
[328395275,1717335043154,-2582.79,0.00019178,2]
[328395276,1717335043163,-155.982184,0.00019178,2]
[328395277,1717335043173,-155.982184,0.00019178,2]
[328395278,1717335043186,-155.982184,0.00019178,2]
[328395279,1717335043196,-37.0138331,0.00019178,2]
[328395280,1717335043208,-462.9861669,0.00019178,2]
[328395281,1717335043218,-500.0,0.00019178,2]
[328395282,1717335043227,-474.42685414,0.00019178,2]
[328395307,1717335046099,-471.37355978,0.00019177,2]
[328395313,1717335046467,-980.60678312,0.00019177,2]
[328395316,1717335184822,307.07869803,0.0002101,14]
[328395319,1717335232561,242.5,0.0003002,120]
[328395338,1717335672154,154.9690062,9.999e-05,2]
[328395373,1717336232234,-154.9690062,0.00017843,2]
[328395374,1717336232248,-206.8459983,0.00017844,2]
[328395375,1717336232267,-100.1188787,0.00017844,2]
[328395376,1717336232278,-3306.1653258,0.00017939,2]
[328395377,1717336232290,-1455.60281974,0.00018171,2]
[328395378,1717336232304,-5541.7047867,0.00018171,2]
[328395379,1717336232320,-911.99553219,0.00018171,2]
[328395380,1717336232331,-551.46083012,0.00018217,2]
[328395381,1717336232345,-371.01116998,0.00018217,2]
[328395382,1717336232356,-4233.16048784,0.00018916,2]
[328395383,1717336232367,-153.0,0.00019,2]
[328395384,1717336232378,-201.73279014,0.00019078,2]
[328395385,1717336232390,-330.84434099,0.00019078,2]
[328395386,1717336232401,-153.0,0.000191,2]
[328395387,1717336232412,-310.4950788,0.000191,2]
[328395388,1717336232423,-413.6115828,0.000191,2]
[328395389,1717336232438,-155.3541646,0.00019151,2]
[328395390,1717336232450,-1424.85692753,0.00019157,2]
[328395391,1717336232461,-384.66,0.00019168,3]
[328395392,1717336232472,-155.13033389,0.00019176,2]
[328395393,1717336232485,-54.37278426,0.00019176,2]
[328395443,1717336238226,-336.26318983,0.00019176,2]
[328395444,1717336238236,-316.60621238,0.00019176,2]
[328395445,1717336238247,-187.38717571,0.00019176,2]
[328395446,1717336238257,-211.39536996,0.00019176,2]
[328395447,1717336238267,-334.06223802,0.00019176,2]
[328395476,1717336241568,-1896.90335057,0.00019176,2]
[328395500,1717336243381,-497.53846687,0.00019176,2]
[328395639,1717336267780,489.04932178,9.999e-05,2]
[328395656,1717336269503,292.07469675,0.00014382,2]
[328395893,1717336303314,1090.83320185,9.999e-05,2]
[328395902,1717336304015,236.21751025,9.999e-05,2]
[328395915,1717336305217,154.9690062,9.999e-05,2]
[328395968,1717336315704,302.91535958,9.999e-05,2]
[328396167,1717336340626,154.9690062,9.999e-05,2]
[328396181,1717336342636,521.94946032,9.999e-05,2]
[328397218,1717336474544,1000.0,0.0003001,30]
[328397226,1717336475737,1000.0,0.0003001,30]
[328397229,1717336476124,1000.0,0.0003001,30]
[328397232,1717336476492,1000.0,0.0003001,30]
[328397237,1717336477030,1000.0,0.0003001,30]
[328397239,1717336477232,1000.0,0.0003001,30]
[328397243,1717336477604,1000.0,0.0003001,30]
[328397246,1717336478040,1000.0,0.0003001,30]
[328397249,1717336478380,1000.0,0.0003001,30]
[328397250,1717336478776,1000.0,0.0003001,30]
[328397297,1717336490557,1000.0,0.0003001,30]
[328397304,1717336491578,1000.0,0.0003001,30]
[328397307,1717336491918,1000.0,0.0003001,30]
[328397309,1717336492460,1000.0,0.0003001,30]
[328397310,1717336492745,1000.0,0.0003001,30]
[328397311,1717336493127,1000.0,0.0003001,30]
[328397312,1717336493499,1000.0,0.0003001,30]
[328397313,1717336493896,1000.0,0.0003001,30]
[328397315,1717336494287,1000.0,0.0003001,30]
[328397318,1717336494663,1000.0,0.0003001,30]
[328397322,1717336495063,1000.0,0.0003001,30]
[328397324,1717336495446,1000.0,0.0003001,30]
[328397326,1717336495851,1000.0,0.0003001,30]
[328397327,1717336496246,1000.0,0.0003001,30]
[328397328,1717336496634,1000.0,0.0003001,30]
[328397330,1717336497043,1000.0,0.0003001,30]
[328397331,1717336497441,1000.0,0.0003001,30]
[328397332,1717336497834,1000.0,0.0003001,30]
[328397333,1717336498226,1000.0,0.0003001,30]
[328397334,1717336498614,1000.0,0.0003001,30]
[328397336,1717336499012,1000.0,0.0003001,30]
[328397338,1717336499409,1000.0,0.0003001,30]
[328397341,1717336499821,1000.0,0.0003001,30]
[328397343,1717336500205,1000.0,0.0003001,30]
[328397345,1717336500633,1000.0,0.0003001,30]
[328397347,1717336500978,1000.0,0.0003001,30]
[328397351,1717336501541,1000.0,0.0003001,30]
[328397352,1717336501761,1000.0,0.0003001,30]
[328397355,1717336502138,1000.0,0.0003001,30]
[328397357,1717336502543,1000.0,0.0003001,30]
[328397359,1717336502892,1000.0,0.0003001,30]
[328397361,1717336503272,1000.0,0.0003001,30]
[328397363,1717336503677,1000.0,0.0003001,30]
[328397365,1717336504095,1000.0,0.0003001,30]
[328397366,1717336504463,1000.0,0.0003001,30]
[328397368,1717336504845,1000.0,0.0003001,30]
[328397371,1717336505239,1000.0,0.0003001,30]
[328397373,1717336505611,1000.0,0.0003001,30]
[328397377,1717336506014,1000.0,0.0003001,30]
[328397380,1717336506408,1000.0,0.0003001,30]
[328397381,1717336506823,1000.0,0.0003001,30]
[328397382,1717336507186,1000.0,0.0003001,30]
[328397384,1717336507601,1000.0,0.0003001,30]
[328397387,1717336508002,1000.0,0.0003001,30]
[328397389,1717336508395,1000.0,0.0003001,30]
[328397391,1717336508816,1000.0,0.0003001,30]
[328397394,1717336509201,1000.0,0.0003001,30]
[328397396,1717336509664,1000.0,0.0003001,30]
[328397398,1717336510035,1000.0,0.0003001,30]
[328397400,1717336510448,1000.0,0.0003001,30]
[328397402,1717336510993,1000.0,0.0003001,30]
[328397403,1717336511270,1000.0,0.0003001,30]
[328397404,1717336511860,1000.0,0.0003001,30]
[328397406,1717336512099,1000.0,0.0003001,30]
[328397409,1717336512495,1000.0,0.0003001,30]
[328397411,1717336512883,1000.0,0.0003001,30]
[328397413,1717336513292,1000.0,0.0003001,30]
[328397416,1717336513692,1000.0,0.0003001,30]
[328397418,1717336514097,1000.0,0.0003001,30]
[328397421,1717336514496,1000.0,0.0003001,30]
[328397423,1717336514914,1000.0,0.0003001,30]
[328397426,1717336515330,1000.0,0.0003001,30]
[328397427,1717336515724,1000.0,0.0003001,30]
[328397428,1717336516145,1000.0,0.0003001,30]
[328397429,1717336516556,1000.0,0.0003001,30]
[328397432,1717336517198,1000.0,0.0003001,30]
[328397434,1717336517424,1000.0,0.0003001,30]
[328397436,1717336517822,1000.0,0.0003001,30]
[328397439,1717336518260,1000.0,0.0003001,30]
[328397441,1717336518661,1000.0,0.0003001,30]
[328397443,1717336519057,1000.0,0.0003001,30]
[328397445,1717336519473,1000.0,0.0003001,30]
[328397447,1717336519894,1000.0,0.0003001,30]
[328397474,1717336555941,500.0,0.0003001,30]
[328397475,1717336556232,379.07280858,0.0003001,30]
[328397476,1717336556562,500.0,0.0003001,30]
[328397477,1717336556823,500.0,0.0003001,30]
[328397478,1717336557091,500.0,0.0003001,30]
[328397479,1717336557399,500.0,0.0003001,30]
[328397480,1717336557661,500.0,0.0003001,30]
[328397481,1717336557752,500.0,0.0003001,30]
[328397482,1717336557930,500.0,0.0003001,30]
[328397483,1717336558030,500.0,0.0003001,30]
[328397484,1717336558145,263.79994372,0.0003001,30]
[328397485,1717336558230,500.0,0.0003001,30]
[328397486,1717336558297,500.0,0.0003001,30]
[328397487,1717336558510,337.47436513,0.0003001,30]
[328397488,1717336558544,500.0,0.0003001,30]
[328397489,1717336558572,500.0,0.0003001,30]
[328397490,1717336558818,500.0,0.0003001,30]
[328397491,1717336558850,500.0,0.0003001,30]
[328397492,1717336559095,500.0,0.0003001,30]
[328397493,1717336559347,500.0,0.0003001,30]
[328397494,1717336559379,500.0,0.0003001,30]
[328397495,1717336559613,500.0,0.0003001,30]
[328397496,1717336559883,615.14539477,0.0003001,30]
[328397497,1717336559943,624.32060844,0.0003001,30]
[328397499,1717336560353,500.0,0.0003001,30]
[328397501,1717336560617,500.0,0.0003001,30]
[328397503,1717336560907,633.00125296,0.0003001,30]
[328397506,1717336565090,505.66,0.0003001,30]
[328397507,1717336565300,3776.74,0.0003001,30]
[328397508,1717336565521,505.66,0.0003001,30]
[328397509,1717336566136,505.66,0.0003001,30]
[328397510,1717336566325,3776.74,0.0003001,30]
[328397511,1717336566436,505.66,0.0003001,30]
[328397512,1717336566588,11455.04,0.0003001,30]
[328397513,1717336566650,3776.74,0.0003001,30]
[328397514,1717336566725,505.66,0.0003001,30]
[328397515,1717336566884,500.0,0.0003001,30]
[328397516,1717336566931,11455.04,0.0003001,30]
[328397517,1717336566987,505.66,0.0003001,30]
[328397518,1717336567016,3776.74,0.0003001,30]
[328397519,1717336567184,500.0,0.0003001,30]
[328397520,1717336567242,3776.74,0.0003001,30]
[328397521,1717336567280,505.66,0.0003001,30]
[328397522,1717336567442,500.0,0.0003001,30]
[328397523,1717336567555,505.66,0.0003001,30]
[328397524,1717336567594,11455.04,0.0003001,30]
[328397525,1717336567710,500.0,0.0003001,30]
[328397526,1717336567835,3776.74,0.0003001,30]
[328397527,1717336567864,505.66,0.0003001,30]
[328397528,1717336567926,11455.04,0.0003001,30]
[328397529,1717336567990,500.0,0.0003001,30]
[328397530,1717336568096,3776.74,0.0003001,30]
[328397531,1717336568134,505.66,0.0003001,30]
[328397532,1717336568203,11455.04,0.0003001,30]
[328397533,1717336568273,500.0,0.0003001,30]
[328397534,1717336568348,3776.74,0.0003001,30]
[328397535,1717336568398,505.66,0.0003001,30]
[328397536,1717336568491,11455.04,0.0003001,30]
[328397537,1717336568524,500.0,0.0003001,30]
[328397538,1717336568634,3776.74,0.0003001,30]
[328397539,1717336568688,505.66,0.0003001,30]
[328397540,1717336568801,500.0,0.0003001,30]
[328397541,1717336568924,3776.74,0.0003001,30]
[328397542,1717336568999,11455.04,0.0003001,30]
[328397543,1717336569028,505.66,0.0003001,30]
[328397544,1717336569062,500.0,0.0003001,30]
[328397545,1717336569195,3776.74,0.0003001,30]
[328397546,1717336569271,11455.04,0.0003001,30]
[328397547,1717336569300,505.66,0.0003001,30]
[328397548,1717336569329,495.6691856,0.0003001,30]
[328397549,1717336569484,3776.74,0.0003001,30]
[328397550,1717336569589,505.66,0.0003001,30]
[328397551,1717336569619,11455.04,0.0003001,30]
[328397552,1717336569754,3776.74,0.0003001,30]
[328397553,1717336569858,505.66,0.0003001,30]
[328397554,1717336569944,11455.04,0.0003001,30]
[328397555,1717336570034,3776.74,0.0003001,30]
[328397556,1717336570138,505.66,0.0003001,30]
[328397557,1717336570249,11455.04,0.0003001,30]
[328397558,1717336570288,3776.74,0.0003001,30]
[328397559,1717336570579,3776.74,0.0003001,30]
[328397560,1717336570751,505.66,0.0003001,30]
[328397561,1717336570845,3776.74,0.0003001,30]
[328397562,1717336570876,11455.04,0.0003001,30]
[328397563,1717336571036,505.66,0.0003001,30]
[328397564,1717336571142,3776.74,0.0003001,30]
[328397565,1717336571171,11455.04,0.0003001,30]
[328397566,1717336571283,505.66,0.0003001,30]
[328397567,1717336571422,3776.74,0.0003001,30]
[328397568,1717336571457,11455.04,0.0003001,30]
[328397569,1717336571544,505.66,0.0003001,30]
[328397570,1717336571686,1874.69746367,0.0003001,30]
[328398157,1717337327815,2639.57223461,9.999e-05,2]
[328398181,1717337406128,1341.53230163,9.999e-05,2]
[328398208,1717337432502,-703.7636435,0.00018057,2]
[328398210,1717337432514,-2364.50890533,0.00018057,2]
[328398212,1717337432523,-16158.3531945,0.00018058,2]
[328398214,1717337432534,-4233.16048784,0.00018651,2]
[328398216,1717337432543,-915.4729939,0.00018923,2]
[328398217,1717337432553,-217.09838963,0.00019073,2]
[328398218,1717337432563,-197.38668716,0.00019073,2]
[328398219,1717337432572,-217.09838963,0.00019078,2]
[328398220,1717337432582,-204.942387,0.000191,2]
[328398221,1717337432592,-668.88,0.00019162,3]
[328398222,1717337432601,-669.30780823,0.0001917,2]
[328398223,1717337432610,-216.01852232,0.0001917,2]
[328398224,1717337432619,-155.00930056,0.0001917,2]
[328398225,1717337432629,-1340.68872385,0.0001917,2]
[328398226,1717337432638,-291.95506617,0.00019171,2]
[328398227,1717337432648,-42053.34704905,0.00019172,2]
[328398229,1717337432660,-296.2363545,0.00019172,2]